[Event "Early-Titled-Tuesday-Blitz-February-06-2024"]
[Site "Chess.com"]
[Date "2024.02.06"]
[Round "10"]
[White "KaterynaLagno"]
[Black "karinachess1"]
[Result "1-0"]
[WhiteElo "2818"]
[BlackElo "2651"]
[TimeControl "180+1"]
[EndTime "9:57:39 PST"]
[Termination "KaterynaLagno won by checkmate"]

1. e4 {[%clk 0:03:00.9]} 1... e5 {[%clk 0:02:59.8]} 2. Nf3 {[%clk 0:03:00.7]}
2... Nc6 {[%clk 0:02:59.9]} 3. Bb5 {[%clk 0:03:01.4]} 3... Nf6 {[%clk
0:02:58.6]} 4. d3 {[%clk 0:02:53.4]} 4... d6 {[%clk 0:02:55.2]} 5. O-O {[%clk
0:02:50.8]} 5... g6 {[%clk 0:02:47.9]} 6. Re1 {[%clk 0:02:35.6]} 6... Bg7 {[%clk
0:02:48]} 7. c3 {[%clk 0:02:34.5]} 7... Bd7 {[%clk 0:02:44.4]} 8. Nbd2 {[%clk
0:02:32.3]} 8... O-O {[%clk 0:02:43.2]} 9. Nf1 {[%clk 0:02:29.8]} 9... Qe8
{[%clk 0:02:41.1]} 10. a4 {[%clk 0:02:19.4]} 10... Kh8 {[%clk 0:02:40.7]} 11.
Ne3 {[%clk 0:02:12.3]} 11... Nh5 {[%clk 0:02:34.5]} 12. Nd5 {[%clk 0:02:11.5]}
12... Rc8 {[%clk 0:02:33.8]} 13. h3 {[%clk 0:01:59]} 13... f5 {[%clk 0:02:23.2]}
14. exf5 {[%clk 0:01:55.6]} 14... gxf5 {[%clk 0:02:23.4]} 15. d4 {[%clk
0:01:51.4]} 15... e4 {[%clk 0:02:09.8]} 16. Nh2 {[%clk 0:01:51.5]} 16... a6
{[%clk 0:01:50.7]} 17. Be2 {[%clk 0:01:50.4]} 17... Nf6 {[%clk 0:01:50.2]} 18.
Nf4 {[%clk 0:01:49.5]} 18... Ne7 {[%clk 0:01:42.2]} 19. Nf1 {[%clk 0:01:47.6]}
19... Ng6 {[%clk 0:01:37.4]} 20. Ng3 {[%clk 0:01:48]} 20... Rg8 {[%clk
0:01:26.4]} 21. Nfh5 {[%clk 0:01:45.8]} 21... Nxh5 {[%clk 0:01:25.2]} 22. Nxh5
{[%clk 0:01:46.7]} 22... Qf7 {[%clk 0:01:19.3]} 23. g3 {[%clk 0:01:29.9]} 23...
Bf8 {[%clk 0:01:13.4]} 24. Kh2 {[%clk 0:01:23.5]} 24... Re8 {[%clk 0:01:10.9]}
25. Be3 {[%clk 0:01:19.5]} 25... d5 {[%clk 0:01:06.8]} 26. b3 {[%clk 0:01:15.7]}
26... Bd6 {[%clk 0:01:05.6]} 27. Qd2 {[%clk 0:01:13]} 27... c6 {[%clk
0:00:54.1]} 28. c4 {[%clk 0:01:10.1]} 28... Ref8 {[%clk 0:00:47.3]} 29. Nf4
{[%clk 0:00:57.2]} 29... Nxf4 {[%clk 0:00:47.2]} 30. Bxf4 {[%clk 0:00:58.1]}
30... Qf6 {[%clk 0:00:47.6]} 31. Rad1 {[%clk 0:00:45.8]} 31... Re8 {[%clk
0:00:46]} 32. c5 {[%clk 0:00:40.4]} 32... Bxf4 {[%clk 0:00:37.5]} 33. Qxf4
{[%clk 0:00:41.3]} 33... Re7 {[%clk 0:00:35.1]} 34. Bf1 {[%clk 0:00:38.2]} 34...
Qg5 {[%clk 0:00:28.2]} 35. Re3 {[%clk 0:00:26]} 35... Qxf4 {[%clk 0:00:26.6]}
36. gxf4 {[%clk 0:00:26.9]} 36... a5 {[%clk 0:00:21.5]} 37. Rb1 {[%clk
0:00:22.3]} 37... Ra8 {[%clk 0:00:20]} 38. b4 {[%clk 0:00:21.4]} 38... axb4
{[%clk 0:00:19.4]} 39. Rxb4 {[%clk 0:00:22.3]} 39... Bc8 {[%clk 0:00:19.6]} 40.
Be2 {[%clk 0:00:20.4]} 40... Rg7 {[%clk 0:00:19]} 41. Rg3 {[%clk 0:00:19.1]}
41... Kg8 {[%clk 0:00:18.5]} 42. Bh5 {[%clk 0:00:16.2]} 42... Kf8 {[%clk
0:00:17.9]} 43. Kg2 {[%clk 0:00:16]} 43... Ra7 {[%clk 0:00:16]} 44. Kf1 {[%clk
0:00:15.3]} 44... Be6 {[%clk 0:00:12.8]} 45. Ke1 {[%clk 0:00:13.3]} 45... Bc8
{[%clk 0:00:12.8]} 46. Kd2 {[%clk 0:00:12.6]} 46... Be6 {[%clk 0:00:12.7]} 47.
Be2 {[%clk 0:00:11.7]} 47... Bc8 {[%clk 0:00:12.2]} 48. Kc2 {[%clk 0:00:08.5]}
48... Be6 {[%clk 0:00:11.9]} 49. Kb2 {[%clk 0:00:08.8]} 49... Bc8 {[%clk
0:00:12.2]} 50. Ka3 {[%clk 0:00:09.3]} 50... Be6 {[%clk 0:00:11.8]} 51. Rb1
{[%clk 0:00:10]} 51... Bc8 {[%clk 0:00:06.3]} 52. Rbg1 {[%clk 0:00:09.3]} 52...
Rxg3+ {[%clk 0:00:05.5]} 53. Rxg3 {[%clk 0:00:10.2]} 53... Ra8 {[%clk
0:00:05.4]} 54. Kb4 {[%clk 0:00:09.9]} 54... Be6 {[%clk 0:00:05.2]} 55. h4
{[%clk 0:00:08.4]} 55... Kf7 {[%clk 0:00:05.5]} 56. h5 {[%clk 0:00:08.3]} 56...
Kf6 {[%clk 0:00:02.5]} 57. h6 {[%clk 0:00:06.9]} 57... Bf7 {[%clk 0:00:03.1]}
58. Bd1 {[%clk 0:00:04.6]} 58... Bg6 {[%clk 0:00:03]} 59. Be2 {[%clk 0:00:04.4]}
59... Ra7 {[%clk 0:00:03.5]} 60. Rg1 {[%clk 0:00:04.2]} 60... Ra8 {[%clk
0:00:04.1]} 61. Rb1 {[%clk 0:00:03.9]} 61... Ra7 {[%clk 0:00:04.6]} 62. Bd1
{[%clk 0:00:04.3]} 62... Ke7 {[%clk 0:00:05.1]} 63. Kc3 {[%clk 0:00:04.6]} 63...
Kf6 {[%clk 0:00:05.3]} 64. Bc2 {[%clk 0:00:04.5]} 64... Ke7 {[%clk 0:00:05.6]}
65. Kb4 {[%clk 0:00:04.7]} 65... Kf6 {[%clk 0:00:06]} 66. Rg1 {[%clk 0:00:05.2]}
66... Ke7 {[%clk 0:00:06.5]} 67. Bd1 {[%clk 0:00:05.1]} 67... Kf6 {[%clk
0:00:07]} 68. Be2 {[%clk 0:00:04.3]} 68... Kf7 {[%clk 0:00:07.2]} 69. a5 {[%clk
0:00:03.9]} 69... Kf6 {[%clk 0:00:07.8]} 70. Ka4 {[%clk 0:00:02.7]} 70... Kf7
{[%clk 0:00:08]} 71. Rb1 {[%clk 0:00:02.9]} 71... Kf6 {[%clk 0:00:08.3]} 72. Rb6
{[%clk 0:00:03.1]} 72... Be8 {[%clk 0:00:07.8]} 73. a6 {[%clk 0:00:02.9]} 73...
bxa6 {[%clk 0:00:07.9]} 74. Bxa6 {[%clk 0:00:02.9]} 74... Kg6 {[%clk 0:00:07.7]}
75. Ka5 {[%clk 0:00:03.5]} 75... Kxh6 {[%clk 0:00:07.7]} 76. Rb8 {[%clk
0:00:03.9]} 76... Bg6 {[%clk 0:00:07.7]} 77. Kb6 {[%clk 0:00:03.7]} 77... Re7
{[%clk 0:00:07.2]} 78. Kxc6 {[%clk 0:00:03.8]} 78... e3 {[%clk 0:00:07]} 79.
fxe3 {[%clk 0:00:04.4]} 79... Rxe3 {[%clk 0:00:07.9]} 80. Kxd5 {[%clk
0:00:05.1]} 80... Re4 {[%clk 0:00:08]} 81. c6 {[%clk 0:00:05.1]} 81... Bf7+
{[%clk 0:00:07.7]} 82. Kc5 {[%clk 0:00:05.2]} 82... Re1 {[%clk 0:00:06.5]} 83.
c7 {[%clk 0:00:04.9]} 83... Rc1+ {[%clk 0:00:06.9]} 84. Kd6 {[%clk 0:00:05.6]}
84... Rd1 {[%clk 0:00:05.2]} 85. c8=Q {[%clk 0:00:05.4]} 85... Rxd4+ {[%clk
0:00:05.8]} 86. Ke5 {[%clk 0:00:05.5]} 86... Re4+ {[%clk 0:00:05.3]} 87. Kf6
{[%clk 0:00:05.3]} 87... Bg6 {[%clk 0:00:05.9]} 88. Qf8+ {[%clk 0:00:04.9]}
88... Kh5 {[%clk 0:00:06.4]} 89. Rb1 {[%clk 0:00:04.4]} 89... Kg4 {[%clk
0:00:06.6]} 90. Rg1+ {[%clk 0:00:04.2]} 90... Kxf4 {[%clk 0:00:07.2]} 91. Qd6+
{[%clk 0:00:04.5]} 91... Kf3 {[%clk 0:00:07.4]} 92. Qg3# {[%clk 0:00:04.8]} 1-0

[Event "Early-Titled-Tuesday-Blitz-February-06-2024"]
[Site "Chess.com"]
[Date "2024.02.06"]
[Round "10"]
[White "topce"]
[Black "anasta10"]
[Result "0-1"]
[WhiteElo "2386"]
[BlackElo "2530"]
[TimeControl "180+1"]
[EndTime "9:58:53 PST"]
[Termination "anasta10 won on time"]

1. c4 {[%clk 0:03:00.9]} 1... Nf6 {[%clk 0:02:59.9]} 2. Nc3 {[%clk 0:02:59.3]}
2... c5 {[%clk 0:02:59.9]} 3. g3 {[%clk 0:02:57.6]} 3... g6 {[%clk 0:03:00.5]}
4. Bg2 {[%clk 0:02:58.3]} 4... Bg7 {[%clk 0:03:01.1]} 5. d3 {[%clk 0:02:58.8]}
5... O-O {[%clk 0:03:01.8]} 6. Bf4 {[%clk 0:02:59]} 6... Nc6 {[%clk 0:03:02.1]}
7. Qd2 {[%clk 0:02:58.7]} 7... d6 {[%clk 0:03:02.8]} 8. Bh6 {[%clk 0:02:58.8]}
8... Re8 {[%clk 0:03:03.1]} 9. h4 {[%clk 0:02:58.5]} 9... Bh8 {[%clk 0:03:03.4]}
10. h5 {[%clk 0:02:58.7]} 10... Be6 {[%clk 0:02:49.5]} 11. Nf3 {[%clk
0:02:53.7]} 11... Qd7 {[%clk 0:02:43.4]} 12. hxg6 {[%clk 0:02:48]} 12... fxg6
{[%clk 0:02:43.4]} 13. Ng5 {[%clk 0:02:48.6]} 13... Bf5 {[%clk 0:02:29.6]} 14.
e4 {[%clk 0:02:43.2]} 14... Be6 {[%clk 0:02:26.8]} 15. Nxe6 {[%clk 0:02:40]}
15... Qxe6 {[%clk 0:02:27.7]} 16. Bh3 {[%clk 0:02:39.3]} 16... Qf7 {[%clk
0:02:25.8]} 17. Nd5 {[%clk 0:02:27.5]} 17... e6 {[%clk 0:02:20.8]} 18. Nc3
{[%clk 0:02:16]} 18... Nd4 {[%clk 0:02:19.1]} 19. O-O-O {[%clk 0:01:35.6]} 19...
b5 {[%clk 0:02:18.2]} 20. f4 {[%clk 0:01:32.7]} 20... bxc4 {[%clk 0:01:58]} 21.
dxc4 {[%clk 0:01:33.6]} 21... Nd7 {[%clk 0:01:57.6]} 22. e5 {[%clk 0:01:27.8]}
22... dxe5 {[%clk 0:01:52.6]} 23. Ne4 {[%clk 0:01:27.9]} 23... exf4 {[%clk
0:01:41.3]} 24. Nd6 {[%clk 0:01:25.2]} 24... Qf6 {[%clk 0:01:36.4]} 25. Nxe8
{[%clk 0:01:21.2]} 25... Rxe8 {[%clk 0:01:37.3]} 26. gxf4 {[%clk 0:01:12.5]}
26... Nb6 {[%clk 0:01:36.5]} 27. Bg5 {[%clk 0:01:09.5]} 27... Qg7 {[%clk
0:01:30.4]} 28. Bf1 {[%clk 0:01:00]} 28... Nf3 {[%clk 0:01:05.9]} 29. Qc2 {[%clk
0:00:54]} 29... Nxg5 {[%clk 0:01:01.5]} 30. fxg5 {[%clk 0:00:54.9]} 30... Qe5
{[%clk 0:00:58.6]} 31. Bd3 {[%clk 0:00:41]} 31... Rb8 {[%clk 0:00:54]} 32. Bxg6
{[%clk 0:00:36.9]} 32... Qxg5+ {[%clk 0:00:14.9]} 33. Kb1 {[%clk 0:00:37.2]}
33... hxg6 {[%clk 0:00:15.1]} 34. Rhg1 {[%clk 0:00:31]} 34... Qf5 {[%clk
0:00:15.2]} 35. Rxg6+ {[%clk 0:00:30.8]} 35... Kf8 {[%clk 0:00:14.4]} 36. Rh1
{[%clk 0:00:18.6]} 36... Qxc2+ {[%clk 0:00:12]} 37. Kxc2 {[%clk 0:00:18.4]}
37... Bd4 {[%clk 0:00:12.5]} 38. Rh7 {[%clk 0:00:17.2]} 38... Nxc4 {[%clk
0:00:08.1]} 39. b3 {[%clk 0:00:17.4]} 39... Ne5 {[%clk 0:00:07.7]} 40. Rxe6
{[%clk 0:00:16.8]} 40... Ng4 {[%clk 0:00:04.8]} 41. Ree7 {[%clk 0:00:14.8]}
41... Ne3+ {[%clk 0:00:04.6]} 42. Kd3 {[%clk 0:00:14.6]} 42... Nd5 {[%clk
0:00:05]} 43. Rxa7 {[%clk 0:00:14]} 43... Nf6 {[%clk 0:00:03.7]} 44. Rhf7+
{[%clk 0:00:13.8]} 44... Kg8 {[%clk 0:00:03.6]} 45. Kc4 {[%clk 0:00:14]} 45...
Re8 {[%clk 0:00:04]} 46. Rg7+ {[%clk 0:00:14.2]} 46... Kh8 {[%clk 0:00:04]} 47.
Rgf7 {[%clk 0:00:14]} 47... Ne4 {[%clk 0:00:03.9]} 48. Rh7+ {[%clk 0:00:12.7]}
48... Kg8 {[%clk 0:00:04.5]} 49. Rhc7 {[%clk 0:00:10.9]} 49... Nd6+ {[%clk
0:00:04.7]} 50. Kd3 {[%clk 0:00:11.2]} 50... Nb5 {[%clk 0:00:05.2]} 51. Rcb7
{[%clk 0:00:09.8]} 51... Nxa7 {[%clk 0:00:05.3]} 52. Rxa7 {[%clk 0:00:10.5]}
52... Kf8 {[%clk 0:00:05.8]} 53. Kc4 {[%clk 0:00:11]} 53... Re2 {[%clk
0:00:05.9]} 54. a4 {[%clk 0:00:09.9]} 54... Rc2+ {[%clk 0:00:06.5]} 55. Kd5
{[%clk 0:00:10.1]} 55... Rb2 {[%clk 0:00:06.2]} 56. Rb7 {[%clk 0:00:10.7]} 56...
Ke8 {[%clk 0:00:06.4]} 57. a5 {[%clk 0:00:10.7]} 57... Ra2 {[%clk 0:00:06.5]}
58. Rb5 {[%clk 0:00:09]} 58... Kd7 {[%clk 0:00:06.9]} 59. b4 {[%clk 0:00:08.9]}
59... Kc7 {[%clk 0:00:02.9]} 60. bxc5 {[%clk 0:00:08.6]} 60... Bc3 {[%clk
0:00:03.5]} 61. Kc4 {[%clk 0:00:08.8]} 61... Bxa5 {[%clk 0:00:03.5]} 62. Rb3
{[%clk 0:00:07.9]} 62... Be1 {[%clk 0:00:03.7]} 63. Rh3 {[%clk 0:00:07.4]} 63...
Ra4+ {[%clk 0:00:03.2]} 64. Kd5 {[%clk 0:00:08.3]} 64... Ra5 {[%clk 0:00:02.6]}
65. Rh7+ {[%clk 0:00:09]} 65... Kc8 {[%clk 0:00:02.9]} 66. Kc6 {[%clk
0:00:09.9]} 66... Ra6+ {[%clk 0:00:03.3]} 67. Kb5 {[%clk 0:00:10]} 67... Rf6
{[%clk 0:00:03.7]} 68. Kc4 {[%clk 0:00:10]} 68... Bf2 {[%clk 0:00:03.8]} 69. Rh5
{[%clk 0:00:10.4]} 69... Bg3 {[%clk 0:00:04]} 70. Rd5 {[%clk 0:00:11.3]} 70...
Bc7 {[%clk 0:00:04.5]} 71. Rh5 {[%clk 0:00:11.6]} 71... Kb7 {[%clk 0:00:04.9]}
72. Rd5 {[%clk 0:00:12.2]} 72... Kc6 {[%clk 0:00:05.3]} 73. Rh5 {[%clk
0:00:12.3]} 73... Rf4+ {[%clk 0:00:05.8]} 74. Kd3 {[%clk 0:00:12.1]} 74... Ra4
{[%clk 0:00:04.4]} 75. Kc3 {[%clk 0:00:12.3]} 75... Ba5+ {[%clk 0:00:04]} 76.
Kb3 {[%clk 0:00:12.6]} 76... Rb4+ {[%clk 0:00:04.3]} 77. Kc2 {[%clk 0:00:11.2]}
77... Re4 {[%clk 0:00:03.6]} 78. Kd3 {[%clk 0:00:11.9]} 78... Rg4 {[%clk
0:00:03.8]} 79. Rh6+ {[%clk 0:00:10.8]} 79... Kxc5 {[%clk 0:00:04.1]} 80. Rh5+
{[%clk 0:00:11.7]} 80... Kb4 {[%clk 0:00:04.6]} 81. Ke3 {[%clk 0:00:12.4]} 81...
Rc4 {[%clk 0:00:04.7]} 82. Kf3 {[%clk 0:00:13.3]} 82... Bb6 {[%clk 0:00:05.3]}
83. Ke2 {[%clk 0:00:13.2]} 83... Bd4 {[%clk 0:00:05.8]} 84. Kd3 {[%clk
0:00:14.1]} 84... Bc5 {[%clk 0:00:05.5]} 85. Kd2 {[%clk 0:00:13.9]} 85... Rd4+
{[%clk 0:00:05.9]} 86. Ke2 {[%clk 0:00:14]} 86... Kc4 {[%clk 0:00:06.5]} 87. Rh7
{[%clk 0:00:12.8]} 87... Rd6 {[%clk 0:00:06.7]} 88. Rh4+ {[%clk 0:00:12.1]}
88... Bd4 {[%clk 0:00:06.4]} 89. Rh7 {[%clk 0:00:10.6]} 89... Re6+ {[%clk
0:00:06.8]} 90. Kf3 {[%clk 0:00:11.3]} 90... Kd3 {[%clk 0:00:07.2]} 91. Kf4
{[%clk 0:00:11.9]} 91... Rf6+ {[%clk 0:00:07.5]} 92. Kg5 {[%clk 0:00:11.4]}
92... Rf1 {[%clk 0:00:07.4]} 93. Rb7 {[%clk 0:00:08.2]} 93... Ke4 {[%clk
0:00:07.4]} 94. Rb4 {[%clk 0:00:07.6]} 94... Kd5 {[%clk 0:00:04]} 95. Kg6 {[%clk
0:00:07.3]} 95... Bc5 {[%clk 0:00:03.3]} 96. Rb2 {[%clk 0:00:06.9]} 96... Ke6
{[%clk 0:00:03]} 97. Re2+ {[%clk 0:00:06.7]} 97... Kd7 {[%clk 0:00:03.3]} 98.
Rd2+ {[%clk 0:00:07.3]} 98... Bd6 {[%clk 0:00:03.9]} 99. Rd3 {[%clk 0:00:07.2]}
99... Ke6 {[%clk 0:00:04.2]} 100. Kg5 {[%clk 0:00:07.4]} 100... Be5 {[%clk
0:00:04.7]} 101. Kg4 {[%clk 0:00:08]} 101... Rf4+ {[%clk 0:00:03.6]} 102. Kh3
{[%clk 0:00:08]} 102... Kf5 {[%clk 0:00:04.2]} 103. Kg2 {[%clk 0:00:08.7]}
103... Kg4 {[%clk 0:00:04.3]} 104. Rd8 {[%clk 0:00:06.1]} 104... Bf6 {[%clk
0:00:04]} 105. Rg8+ {[%clk 0:00:05.7]} 105... Bg5 {[%clk 0:00:04.5]} 106. Rg7
{[%clk 0:00:05.6]} 106... Rb4 {[%clk 0:00:04.9]} 107. Kf2 {[%clk 0:00:06.1]}
107... Rb2+ {[%clk 0:00:05.4]} 108. Ke1 {[%clk 0:00:06.2]} 108... Kf5 {[%clk
0:00:03.1]} 109. Kd1 {[%clk 0:00:06.7]} 109... Bf6 {[%clk 0:00:02.7]} 110. Rg8
{[%clk 0:00:07.1]} 110... Ke4 {[%clk 0:00:03.1]} 111. Rf8 {[%clk 0:00:05.8]}
111... Be5 {[%clk 0:00:03.5]} 112. Re8 {[%clk 0:00:06]} 112... Kf4 {[%clk
0:00:03.3]} 113. Kc1 {[%clk 0:00:05.4]} 113... Rg2 {[%clk 0:00:03.4]} 114. Kb1
{[%clk 0:00:05]} 114... Bd4 {[%clk 0:00:03.9]} 115. Kc1 {[%clk 0:00:03.9]}
115... Be5 {[%clk 0:00:04.5]} 116. Kd1 {[%clk 0:00:04.6]} 116... Ke4 {[%clk
0:00:05.2]} 117. Kc1 {[%clk 0:00:04.4]} 117... Rf2 {[%clk 0:00:05.4]} 118. Kb1
{[%clk 0:00:04.9]} 118... Kd5 {[%clk 0:00:05.1]} 119. Kc1 {[%clk 0:00:05]}
119... Bd4 {[%clk 0:00:05.6]} 120. Rd8+ {[%clk 0:00:04.2]} 120... Kc4 {[%clk
0:00:06.1]} 121. Rc8+ {[%clk 0:00:03.5]} 121... Kd3 {[%clk 0:00:06.6]} 122. Kb1
{[%clk 0:00:03.9]} 122... Rh2 {[%clk 0:00:07.2]} 123. Rd8 {[%clk 0:00:03.3]}
123... Rb2+ {[%clk 0:00:07.7]} 124. Kc1 {[%clk 0:00:03.3]} 124... Ra2 {[%clk
0:00:07.9]} 0-1

[Event "Early-Titled-Tuesday-Blitz-February-06-2024"]
[Site "Chess.com"]
[Date "2024.02.06"]
[Round "11"]
[White "abhidabhi"]
[Black "FabianoCaruana"]
[Result "0-1"]
[WhiteElo "2922"]
[BlackElo "3055"]
[TimeControl "180+1"]
[EndTime "10:01:22 PST"]
[Termination "FabianoCaruana won by resignation"]

1. e4 {[%clk 0:03:00.9]} 1... c5 {[%clk 0:02:59.3]} 2. Nf3 {[%clk 0:03:00.5]}
2... Nc6 {[%clk 0:02:59.4]} 3. Nc3 {[%clk 0:03:00.1]} 3... g6 {[%clk 0:02:59]}
4. d4 {[%clk 0:02:59.8]} 4... cxd4 {[%clk 0:02:59.9]} 5. Nxd4 {[%clk 0:03:00]}
5... Bg7 {[%clk 0:03:00.3]} 6. Nb3 {[%clk 0:03:00.7]} 6... Nf6 {[%clk
0:03:00.6]} 7. Bg5 {[%clk 0:02:53.3]} 7... O-O {[%clk 0:02:59.1]} 8. Qd2 {[%clk
0:02:53.2]} 8... d6 {[%clk 0:02:59.1]} 9. Be2 {[%clk 0:02:48.9]} 9... Be6 {[%clk
0:02:52.5]} 10. O-O {[%clk 0:02:48.2]} 10... Rc8 {[%clk 0:02:52.7]} 11. Nd5
{[%clk 0:02:46.4]} 11... Nxe4 {[%clk 0:02:51.9]} 12. Qf4 {[%clk 0:02:23]} 12...
Bxd5 {[%clk 0:02:50.3]} 13. c4 {[%clk 0:02:23]} 13... Nxg5 {[%clk 0:02:28]} 14.
cxd5 {[%clk 0:02:22.6]} 14... e5 {[%clk 0:02:28.6]} 15. Qe3 {[%clk 0:02:13.4]}
15... Nd4 {[%clk 0:02:25.8]} 0-1

[Event "Early-Titled-Tuesday-Blitz-February-06-2024"]
[Site "Chess.com"]
[Date "2024.02.06"]
[Round "11"]
[White "HATilay"]
[Black "ClaudiaSof"]
[Result "1-0"]
[WhiteElo "2514"]
[BlackElo "2294"]
[TimeControl "180+1"]
[EndTime "10:01:45 PST"]
[Termination "HATilay won by resignation"]

1. d4 {[%clk 0:03:00.9]} 1... e6 {[%clk 0:02:58.7]} 2. c4 {[%clk 0:03:01.3]}
2... f5 {[%clk 0:02:58.4]} 3. Nc3 {[%clk 0:03:01.9]} 3... Nf6 {[%clk 0:02:57.9]}
4. g3 {[%clk 0:03:02]} 4... Bb4 {[%clk 0:02:57.2]} 5. Bd2 {[%clk 0:03:02.1]}
5... O-O {[%clk 0:02:55.7]} 6. Bg2 {[%clk 0:03:02.5]} 6... Nc6 {[%clk 0:02:54]}
7. Nf3 {[%clk 0:03:01.6]} 7... b6 {[%clk 0:02:47.6]} 8. O-O {[%clk 0:03:00.6]}
8... Bb7 {[%clk 0:02:46.9]} 9. Qb3 {[%clk 0:03:01.2]} 9... Bxc3 {[%clk
0:02:33.7]} 10. Bxc3 {[%clk 0:03:00.5]} 10... Kh8 {[%clk 0:02:29.1]} 11. Rad1
{[%clk 0:02:56.9]} 11... d5 {[%clk 0:02:26.7]} 12. Ng5 {[%clk 0:02:41.4]} 12...
Qd7 {[%clk 0:02:23.4]} 13. Nxe6 {[%clk 0:02:30.3]} 13... Na5 {[%clk 0:02:16.6]}
14. Nxf8 {[%clk 0:02:28.2]} 14... Rxf8 {[%clk 0:02:14.2]} 15. Bxa5 {[%clk
0:02:26]} 15... dxc4 {[%clk 0:02:11.2]} 16. Qa3 {[%clk 0:02:12.1]} 1-0

[Event "Early-Titled-Tuesday-Blitz-February-06-2024"]
[Site "Chess.com"]
[Date "2024.02.06"]
[Round "11"]
[White "AnaKuchava"]
[Black "Cubitas"]
[Result "0-1"]
[WhiteElo "2209"]
[BlackElo "2667"]
[TimeControl "180+1"]
[EndTime "10:01:54 PST"]
[Termination "Cubitas won by resignation"]

1. d4 {[%clk 0:03:00.9]} 1... e5 {[%clk 0:02:51.2]} 2. dxe5 {[%clk 0:02:57]}
2... d6 {[%clk 0:02:51.6]} 3. exd6 {[%clk 0:02:55.8]} 3... Bxd6 {[%clk
0:02:51.9]} 4. e3 {[%clk 0:02:55]} 4... Nf6 {[%clk 0:02:52.2]} 5. Nf3 {[%clk
0:02:51.5]} 5... Nc6 {[%clk 0:02:49.9]} 6. Be2 {[%clk 0:02:50.8]} 6... Bg4
{[%clk 0:02:50.4]} 7. O-O {[%clk 0:02:49.3]} 7... Qe7 {[%clk 0:02:51]} 8. Nc3
{[%clk 0:02:48.7]} 8... O-O-O {[%clk 0:02:50.9]} 9. Qe1 {[%clk 0:02:46]} 9... h5
{[%clk 0:02:46.9]} 10. a3 {[%clk 0:02:44.1]} 10... Ne5 {[%clk 0:02:42.8]} 11.
Nxe5 {[%clk 0:02:40.5]} 11... Qxe5 {[%clk 0:02:43.7]} 12. f4 {[%clk 0:02:39.6]}
12... Qe7 {[%clk 0:02:38.6]} 13. b4 {[%clk 0:02:21.7]} 13... h4 {[%clk 0:02:35]}
14. Bb2 {[%clk 0:02:18]} 14... Qxe3+ {[%clk 0:02:31.5]} 15. Qf2 {[%clk 0:02:16]}
15... Bxf4 {[%clk 0:02:25.7]} 16. Bxg4+ {[%clk 0:02:03.6]} 16... Nxg4 {[%clk
0:02:22.9]} 17. Qxe3 {[%clk 0:02:02.1]} 17... Bxe3+ {[%clk 0:02:23.8]} 18. Kh1
{[%clk 0:02:02.6]} 18... Nf2+ {[%clk 0:02:23.7]} 19. Kg1 {[%clk 0:02:00.9]}
19... Nd3+ {[%clk 0:02:22.3]} 20. Kh1 {[%clk 0:01:59.8]} 20... Nxb2 {[%clk
0:02:22.9]} 21. Rae1 {[%clk 0:01:57.7]} 21... Bd2 {[%clk 0:02:22.2]} 0-1

[Event "Early-Titled-Tuesday-Blitz-February-06-2024"]
[Site "Chess.com"]
[Date "2024.02.06"]
[Round "11"]
[White "Adar_07"]
[Black "Janosik"]
[Result "1/2-1/2"]
[WhiteElo "2728"]
[BlackElo "2850"]
[TimeControl "180+1"]
[EndTime "10:02:09 PST"]
[Termination "Game drawn by repetition"]

1. e4 {[%clk 0:03:00.9]} 1... c5 {[%clk 0:02:07.6]} 2. Nf3 {[%clk 0:02:59.8]}
2... a6 {[%clk 0:02:08.5]} 3. c3 {[%clk 0:02:57.9]} 3... d5 {[%clk 0:02:08.8]}
4. exd5 {[%clk 0:02:58.1]} 4... Nf6 {[%clk 0:02:09.3]} 5. d4 {[%clk 0:02:57.9]}
5... cxd4 {[%clk 0:02:10.2]} 6. cxd4 {[%clk 0:02:58.2]} 6... Nxd5 {[%clk
0:02:10.3]} 7. Nc3 {[%clk 0:02:59.1]} 7... Nxc3 {[%clk 0:02:10.4]} 8. bxc3
{[%clk 0:02:59.1]} 8... Qc7 {[%clk 0:02:11.3]} 9. Bd2 {[%clk 0:02:54]} 9... g6
{[%clk 0:02:12.2]} 10. Bd3 {[%clk 0:02:54]} 10... Bg7 {[%clk 0:02:13.1]} 11. h4
{[%clk 0:02:54.5]} 11... O-O {[%clk 0:02:13.9]} 12. h5 {[%clk 0:02:55]} 12...
Nc6 {[%clk 0:02:14.4]} 13. hxg6 {[%clk 0:02:55.5]} 13... hxg6 {[%clk 0:02:15]}
14. Ng5 {[%clk 0:02:52.6]} 14... e5 {[%clk 0:02:04.8]} 15. Qb3 {[%clk
0:02:18.8]} 15... Na5 {[%clk 0:01:39.3]} 16. Bxg6 {[%clk 0:02:18.6]} 16... Nxb3
{[%clk 0:01:34.5]} 17. Bh7+ {[%clk 0:02:18.9]} 17... Kh8 {[%clk 0:01:35]} 18.
Bc2+ {[%clk 0:02:19.4]} 18... Kg8 {[%clk 0:01:35.6]} 19. Bh7+ {[%clk 0:02:19]}
19... Kh8 {[%clk 0:01:36.2]} 20. Bc2+ {[%clk 0:02:19.9]} 20... Kg8 {[%clk
0:01:36.7]} 21. Bh7+ {[%clk 0:02:19.7]} 1/2-1/2

[Event "Early-Titled-Tuesday-Blitz-February-06-2024"]
[Site "Chess.com"]
[Date "2024.02.06"]
[Round "11"]
[White "colegiodemadrid"]
[Black "disciplinedbrat"]
[Result "1-0"]
[WhiteElo "2515"]
[BlackElo "2309"]
[TimeControl "180+1"]
[EndTime "10:02:16 PST"]
[Termination "colegiodemadrid won by checkmate"]

1. d4 {[%clk 0:03:00.9]} 1... Nf6 {[%clk 0:02:57.3]} 2. Bf4 {[%clk 0:03:00]}
2... c5 {[%clk 0:02:56.3]} 3. d5 {[%clk 0:02:57.8]} 3... Qb6 {[%clk 0:02:53.9]}
4. Bc1 {[%clk 0:02:57.3]} 4... e6 {[%clk 0:02:53.1]} 5. c4 {[%clk 0:02:55.8]}
5... Qb4+ {[%clk 0:02:49.4]} 6. Nc3 {[%clk 0:02:52.3]} 6... Qxc4 {[%clk
0:02:48.8]} 7. e4 {[%clk 0:02:52.5]} 7... Qb4 {[%clk 0:02:46.6]} 8. a3 {[%clk
0:02:52.2]} 8... Qb6 {[%clk 0:02:46.5]} 9. e5 {[%clk 0:02:50.9]} 9... Nxd5
{[%clk 0:02:46.3]} 10. Nxd5 {[%clk 0:02:50.8]} 10... exd5 {[%clk 0:02:47]} 11.
Nf3 {[%clk 0:02:48.5]} 11... d4 {[%clk 0:02:44.8]} 12. Bc4 {[%clk 0:02:47.3]}
12... h6 {[%clk 0:02:43.5]} 13. O-O {[%clk 0:02:44.5]} 13... Be7 {[%clk
0:02:43]} 14. b4 {[%clk 0:02:39.5]} 14... O-O {[%clk 0:02:42.1]} 15. Qd3 {[%clk
0:02:34.9]} 15... Nc6 {[%clk 0:02:34.5]} 16. Qe4 {[%clk 0:02:30.8]} 16... d5
{[%clk 0:02:15.6]} 17. Bxd5 {[%clk 0:02:29.5]} 17... cxb4 {[%clk 0:02:13.5]} 18.
Bxh6 {[%clk 0:02:28.4]} 18... gxh6 {[%clk 0:02:11.1]} 19. Qg6+ {[%clk
0:02:26.2]} 19... Kh8 {[%clk 0:02:10.2]} 20. Qxh6+ {[%clk 0:02:25.8]} 20... Kg8
{[%clk 0:02:10.9]} 21. Be4 {[%clk 0:02:22.8]} 21... f5 {[%clk 0:02:03.9]} 22.
Bd5+ {[%clk 0:02:17.9]} 22... Rf7 {[%clk 0:01:50.5]} 23. Qg6+ {[%clk 0:02:18]}
23... Kh8 {[%clk 0:01:50.8]} 24. Bxf7 {[%clk 0:02:18]} 24... Qd8 {[%clk
0:01:46.9]} 25. Qh6# {[%clk 0:02:15.3]} 1-0